bitfinex-derivatives/quotes_BTCF0:USTF0_20210104
["timestamp","ask_amount","ask_price","bid_price","bid_amount"]
[1609791572399,0.13632608,31598.0,31582.0,2.11436582]
[1609791572585,0.13925,31591.0,31582.0,2.11436582]
[1609791573186,0.13925,31591.0,31587.0,0.13632608]
[1609791573586,0.13925,31591.0,31582.0,2.11436582]
[1609791575087,0.13925,31591.0,31587.0,0.13632608]
[1609791575286,0.13925,31591.0,31590.0,0.6008]
[1609791575886,0.1647153,31602.0,31590.0,0.6008]
[1609791576289,0.84618429,31593.0,31590.0,0.6008]
[1609791577091,0.84618429,31593.0,31592.0,0.13632608]
[1609791577590,0.13632608,31606.0,31601.0,3.8668]
[1609791579090,0.13632608,31606.0,31605.0,0.13632608]
[1609791581192,0.95919532,31629.0,31601.0,3.8668]
[1609791581593,0.95919532,31629.0,31603.0,0.13632608]
[1609791583197,0.95947842,31627.0,31603.0,0.13632608]
[1609791583396,1.08798842,31627.0,31603.0,0.13632608]
[1609791583596,0.13632608,31604.0,31603.0,0.13632608]
[1609791588502,0.16065,31607.0,31592.0,3.7443]
[1609791588904,5.1905,31612.0,31592.0,3.7443]
[1609791589605,5.1905,31612.0,31603.0,0.13632608]
[1609791589803,0.21593233,31624.0,31603.0,0.13632608]
[1609791590003,0.21593233,31624.0,31603.0,4.52332608]
[1609791591606,0.13632608,31604.0,31603.0,4.52332608]
[1609791591905,0.29165608,31604.0,31603.0,4.52332608]
[1609791593807,0.29165608,31604.0,31603.0,0.13632608]
[1609791594007,0.29165608,31604.0,31598.0,4.1759]
[1609791594407,0.29165608,31604.0,31591.0,0.15519]
[1609791594609,0.29165608,31604.0,31590.0,2.07658373]
[1609791594808,0.29165608,31604.0,31589.0,2.06847891]
[1609791595609,0.13632608,31590.0,31589.0,2.06847891]
[1609791596413,0.13632608,31590.0,31586.0,5.0852]
[1609791598013,0.13632608,31590.0,31582.0,0.13632608]
[1609791598414,0.13632608,31590.0,31576.0,3.5519]
[1609791599714,0.114,31591.0,31588.0,0.13632608]
[1609791600915,0.2835,31603.0,31588.0,0.13632608]
[1609791601614,0.13632608,31589.0,31588.0,0.13632608]
[1609791602215,0.13632608,31589.0,31583.0,4.8735]
[1609791602416,0.13632608,31589.0,31573.0,2.08544157]
[1609791602617,0.13632608,31589.0,31579.0,4.2081]
[1609791603717,0.14875,31590.0,31579.0,4.34442608]
[1609791603923,0.14875,31590.0,31579.0,0.13632608]
[1609791604323,0.14875,31590.0,31586.0,4.8865]
[1609791605619,0.28507608,31590.0,31589.0,0.13632608]
[1609791606923,0.28507608,31590.0,31580.0,4.7026]
[1609791607621,0.13632608,31581.0,31580.0,4.83892608]
[1609791613428,0.13632608,31581.0,31568.0,0.1771]
[1609791613829,0.11932,31583.0,31573.0,0.13632608]
[1609791614029,0.5968,31582.0,31573.0,0.13632608]
[1609791614229,0.71259,31582.0,31573.0,0.13632608]
[1609791614630,0.11579,31582.0,31567.0,2.07764082]
[1609791615030,0.11579,31582.0,31560.0,0.11312]
[1609791615031,4.1845,31581.0,31566.0,2.07801028]
[1609791615833,0.13632608,31567.0,31566.0,2.07801028]
[1609791616535,0.13632608,31567.0,31557.0,2.07895489]
[1609791617734,0.13181,31569.0,31564.0,0.13632608]
[1609791619739,0.13632608,31565.0,31564.0,0.13632608]
[1609791619938,0.13181,31569.0,31564.0,0.13632608]
[1609791621040,4.0747,31578.0,31564.0,0.13632608]
[1609791621741,0.11579,31582.0,31570.0,0.13632608]
[1609791621943,0.2725,31589.0,31570.0,0.13632608]
[1609791623843,0.2725,31589.0,31580.0,5.24922608]
[1609791624043,0.95899154,31598.0,31580.0,5.24922608]
[1609791624243,0.95899154,31598.0,31580.0,5.1129]
[1609791625845,0.95899154,31598.0,31597.0,0.13632608]
[1609791626647,0.13632608,31602.0,31597.0,0.13632608]
[1609791627747,0.13632608,31602.0,31601.0,0.13632608]
[1609791628247,0.95839673,31616.0,31594.0,4.2928]
[1609791629549,0.21717744,31618.0,31594.0,4.2928]
[1609791629749,0.21717744,31618.0,31601.0,0.13632608]
[1609791631751,0.13632608,31602.0,31595.0,0.13632608]
[1609791631949,0.26219608,31602.0,31595.0,0.13632608]
[1609791633549,0.12587,31602.0,31594.0,4.2928]
[1609791633949,0.12587,31602.0,31595.0,0.13632608]
[1609791635650,0.12587,31602.0,31586.0,3.6306]
[1609791636052,0.12587,31602.0,31589.0,0.13632608]
[1609791636252,0.12587,31602.0,31586.0,3.6306]
[1609791637154,5.2327,31606.0,31586.0,3.6306]
[1609791637354,0.95906807,31616.0,31583.0,0.13144]
[1609791637555,5.2734,31600.0,31583.0,0.13144]
[1609791637758,0.0040267,31595.0,31573.0,4.7834]
[1609791637955,0.0040267,31595.0,31583.0,0.13632608]
[1609791638156,4.5694,31592.0,31583.0,0.13632608]
[1609791638761,0.0040267,31595.0,31583.0,0.13632608]
[1609791639959,0.13632608,31584.0,31583.0,0.13632608]
[1609791641658,4.3588,31588.0,31577.0,0.0996]
[1609791642158,4.3588,31588.0,31586.0,0.13632608]
[1609791643160,0.01381409,31593.0,31586.0,0.13632608]
[1609791643360,0.01381409,31593.0,31586.0,4.18972608]
[1609791644159,0.15014017,31593.0,31592.0,0.13632608]
[1609791645261,0.14611106,31593.0,31592.0,0.13632608]
[1609791647263,0.13632608,31593.0,31592.0,0.13632608]
[1609791648067,0.13632608,31593.0,31577.0,0.0996]
[1609791648265,5.0556,31597.0,31588.0,0.13632608]
[1609791649566,0.13705097,31600.0,31588.0,0.13632608]
[1609791650367,0.13632608,31589.0,31588.0,0.13632608]
[1609791650769,0.13632608,31589.0,31583.0,4.3541]
[1609791652272,0.00403346,31593.0,31587.0,0.13632608]
[1609791653074,0.00403346,31593.0,31583.0,4.3541]
[1609791654274,0.00403346,31593.0,31592.0,0.13632608]
[1609791654473,0.00403346,31593.0,31583.0,4.3541]
[1609791656275,0.00403346,31593.0,31588.0,0.13632608]
[1609791657781,0.0040376,31591.0,31588.0,0.13632608]
[1609791658380,0.13632608,31589.0,31588.0,0.13632608]
[1609791662487,0.13632608,31589.0,31581.0,4.1573]
[1609791662692,0.13632608,31589.0,31566.0,2.36190323]
[1609791662693,0.26530608,31589.0,31566.0,2.36190323]
[1609791662889,0.26530608,31589.0,31573.0,4.9089]
[1609791663585,0.26530608,31589.0,31574.0,0.0943]
[1609791663786,0.26530608,31589.0,31573.0,4.9089]
[1609791664390,0.12898,31589.0,31580.0,0.13632608]
[1609791664988,4.1368,31584.0,31580.0,0.13632608]
[1609791666589,0.00404206,31586.0,31581.0,4.2784]
[1609791666790,0.12898,31589.0,31581.0,4.2784]
[1609791667190,0.00404062,31592.0,31581.0,4.2784]
[1609791667590,0.48471053,31594.0,31580.0,0.13632608]
[1609791667791,0.35761053,31594.0,31588.0,4.5296]
[1609791667992,0.69260783,31597.0,31588.0,4.5296]
[1609791668192,0.62930783,31597.0,31588.0,4.5296]
[1609791668392,0.61360783,31597.0,31596.0,0.13632608]
[1609791668593,0.54830783,31597.0,31596.0,0.13632608]
[1609791668793,0.54830783,31597.0,31596.0,4.42432608]
[1609791669995,0.54830783,31597.0,31596.0,0.13632608]
[1609791670599,0.51680783,31597.0,31596.0,0.13632608]
[1609791673409,0.8463876,31608.0,31593.0,4.9431]
[1609791673607,0.8463876,31608.0,31593.0,0.0944]
[1609791674012,0.8463876,31608.0,31601.0,5.2657]
[1609791674399,1.34641209,31620.0,31601.0,5.2657]
[1609791674400,0.84549105,31612.0,31607.0,0.13632608]
[1609791674609,0.84549105,31612.0,31607.0,0.64802608]
[1609791674802,0.59409105,31612.0,31607.0,0.13632608]
[1609791675000,0.46779105,31612.0,31611.0,3.6137]
[1609791675200,0.46779105,31612.0,31607.0,0.13632608]
[1609791675400,0.31529105,31612.0,31607.0,0.13632608]
[1609791676303,0.11604,31621.0,31607.0,0.65022608]
[1609791676501,0.11604,31621.0,31620.0,0.13632608]
[1609791676703,0.95952633,31624.0,31620.0,0.13632608]
[1609791677906,0.95949266,31628.0,31620.0,0.13632608]
[1609791678406,0.95949266,31628.0,31627.0,0.13632608]
[1609791679508,0.95950075,31630.0,31627.0,0.13632608]
[1609791680409,0.13632608,31628.0,31627.0,0.13632608]
[1609791680810,0.28436608,31628.0,31627.0,0.13632608]
[1609791682411,0.14804,31628.0,31627.0,0.13632608]
[1609791684411,0.14804,31628.0,31627.0,4.48702608]
[1609791684610,0.95950075,31630.0,31627.0,4.48702608]
[1609791685112,0.86950075,31630.0,31627.0,0.13632608]
[1609791685312,0.86950075,31630.0,31627.0,4.13932608]
[1609791685511,0.86950075,31630.0,31627.0,0.13632608]
[1609791685910,0.80250075,31630.0,31627.0,0.13632608]
[1609791686111,0.44920075,31630.0,31627.0,0.13632608]
[1609791686311,0.87087031,31635.0,31627.0,0.13632608]
[1609791686511,0.87087031,31635.0,31634.0,0.13632608]
[1609791686713,0.72561031,31635.0,31634.0,0.13632608]
[1609791687411,0.72561031,31635.0,31634.0,0.64972608]
[1609791687711,0.72561031,31635.0,31634.0,0.13632608]
[1609791689213,0.69472019,31640.0,31634.0,0.13632608]
[1609791690515,0.69472019,31640.0,31639.0,0.13632608]
[1609791691116,0.13632608,31644.0,31639.0,0.13632608]
[1609791691916,0.2731,31661.0,31635.0,4.8548]
[1609791692419,0.2731,31661.0,31644.0,0.13632608]
[1609791692922,0.2731,31661.0,31645.0,4.865]
[1609791694422,0.13632608,31646.0,31645.0,4.865]
[1609791694624,0.24349608,31646.0,31645.0,4.865]
[1609791694822,0.24349608,31646.0,31639.0,0.13632608]
[1609791696426,0.13632608,31640.0,31639.0,0.13632608]
[1609791706739,3.88852608,31640.0,31639.0,0.13632608]
[1609791707544,0.13632608,31640.0,31639.0,0.13632608]
[1609791711041,4.1378,31645.0,31625.0,3.6241]
[1609791711463,4.1948,31637.0,31611.0,4.4475]
[1609791711643,4.29621,31637.0,31611.0,4.4475]
[1609791712645,4.29621,31637.0,31615.0,0.13632608]
[1609791714145,4.29621,31637.0,31611.0,4.4475]
[1609791714546,0.13632608,31612.0,31611.0,4.58382608]
[1609791714747,0.13632608,31612.0,31611.0,0.13632608]
[1609791714947,0.23892608,31612.0,31611.0,0.13632608]
[1609791715948,0.1026,31612.0,31611.0,0.13632608]
[1609791717349,0.15023,31619.0,31611.0,0.13632608]
[1609791718350,0.15023,31619.0,31607.0,3.5713]
[1609791718951,0.15023,31619.0,31618.0,0.13632608]
[1609791720553,0.15023,31619.0,31607.0,3.5713]
[1609791720953,0.15023,31619.0,31618.0,0.13632608]
[1609791722058,0.2722,31627.0,31618.0,0.13632608]
[1609791722858,0.6678,31626.0,31618.0,0.13632608]
[1609791723059,0.13632608,31619.0,31618.0,0.13632608]
[1609791723261,0.26614608,31619.0,31618.0,0.13632608]
[1609791723459,0.26614608,31619.0,31600.0,4.6419]
[1609791725159,0.12982,31619.0,31613.0,0.13632608]
[1609791727061,0.13632608,31614.0,31613.0,0.13632608]
[1609791728065,0.13632608,31614.0,31600.0,4.6419]
[1609791729064,4.962,31613.0,31602.0,0.13632608]
[1609791729466,4.962,31613.0,31582.0,5.0273]
[1609791730568,0.40452,31619.0,31580.0,0.1771]
[1609791730768,4.4266,31601.0,31580.0,0.1771]
[1609791731167,4.52779,31601.0,31578.0,1.9981932]
[1609791731367,4.52779,31601.0,31584.0,0.13632608]
[1609791731368,0.10119,31601.0,31584.0,0.13632608]
[1609791731769,5.2834,31590.0,31584.0,0.13632608]
[1609791733273,0.13632608,31585.0,31584.0,0.13632608]
[1609791733470,4.86272608,31585.0,31584.0,0.13632608]
[1609791734574,4.86272608,31585.0,31564.0,3.5725]
[1609791734773,4.1155,31570.0,31558.0,2.02779969]
[1609791734974,0.12923,31572.0,31558.0,2.02779969]
[1609791735174,7.7421,31571.0,31558.0,2.02779969]
[1609791735376,0.13632608,31559.0,31558.0,1.89859969]
[1609791735575,0.26797608,31559.0,31558.0,1.81049969]
[1609791735976,0.13165,31559.0,31552.0,2.22460317]
[1609791736176,3.9527,31553.0,31552.0,2.22460317]
[1609791737378,4.08902608,31553.0,31552.0,2.22460317]
[1609791737579,4.08902608,31553.0,31517.0,0.48353159]
[1609791737778,4.9614,31545.0,31533.0,0.13632608]
[1609791739282,0.13632608,31534.0,31533.0,0.13632608]
[1609791740482,4.9614,31545.0,31533.0,0.13632608]
[1609791740782,0.13994,31547.0,31533.0,0.13632608]
[1609791741385,0.13994,31547.0,31542.0,0.13632608]
[1609791741685,0.13994,31547.0,31527.0,4.60908]
[1609791743087,0.2872,31558.0,31527.0,4.60908]
[1609791743288,0.2872,31558.0,31540.0,0.13632608]
[1609791744290,5.301,31547.0,31540.0,0.13632608]
[1609791744491,0.15303,31547.0,31540.0,0.13632608]
[1609791745391,0.13632608,31555.0,31546.0,0.13632608]
[1609791745592,0.13165,31559.0,31546.0,0.13632608]
[1609791745791,0.2881,31571.0,31548.0,4.6917]
[1609791746396,0.2881,31571.0,31546.0,0.13632608]
[1609791746595,4.3688,31569.0,31546.0,0.13632608]
[1609791747397,4.3688,31569.0,31552.0,0.13632608]
[1609791748700,4.3688,31569.0,31543.0,0.14259]
[1609791749300,0.13632608,31555.0,31552.0,0.13632608]
[1609791749501,0.27082608,31555.0,31552.0,0.13632608]
[1609791756813,0.27082608,31555.0,31537.0,0.1771]
[1609791757013,4.1029,31545.0,31514.0,4.9714]
[1609791757217,4.21771,31545.0,31514.0,4.9714]
[1609791757412,0.11481,31545.0,31513.0,0.1771]
[1609791757612,3.7512,31535.0,31516.0,0.13632608]
[1609791758614,3.7512,31535.0,31493.0,3.7372]
[1609791758813,0.0958,31534.0,31493.0,3.7372]
[1609791759716,0.13632608,31513.0,31502.0,0.13632608]
[1609791760115,0.29487608,31513.0,31502.0,0.13632608]
[1609791760715,0.29487608,31513.0,31492.0,0.1771]
[1609791761315,0.29487608,31513.0,31478.0,0.1771]
[1609791761716,4.17987608,31513.0,31498.0,0.13632608]
[1609791764420,0.29487608,31513.0,31498.0,0.13632608]
[1609791768124,4.75447608,31513.0,31498.0,0.13632608]
[1609791769929,0.29487608,31513.0,31498.0,0.13632608]
[1609791770629,0.29487608,31513.0,31512.0,0.1056]
[1609791770829,0.29487608,31513.0,31512.0,0.01]
[1609791771631,4.32597608,31513.0,31512.0,0.01]
[1609791772333,0.29487608,31513.0,31512.0,0.01]
[1609791779840,0.15855,31513.0,31512.0,0.01]
[1609791780243,0.12228,31513.0,31512.0,0.01]
[1609791780443,0.25860608,31513.0,31512.0,0.01]
[1609791780746,0.25860608,31513.0,31488.0,5.3188]
[1609791780942,0.25860608,31513.0,31436.0,2.98299178]
[1609791781142,0.25860608,31513.0,31459.0,0.1771]
[1609791781342,4.5839,31499.0,31459.0,0.476]
[1609791781743,4.73574,31499.0,31459.0,0.476]
[1609791782142,0.2797,31498.0,31459.0,0.1771]
[1609791782343,0.2797,31498.0,31472.0,0.13632608]
[1609791782845,0.2797,31498.0,31472.0,4.38312608]
[1609791783045,0.2797,31498.0,31473.0,0.1771]
[1609791783646,4.4178,31494.0,31454.0,5.1421]
[1609791784348,4.4178,31494.0,31474.0,0.13632608]
[1609791784551,0.2797,31498.0,31474.0,0.13632608]
[1609791786451,0.2797,31498.0,31469.0,4.03282608]
[1609791786650,0.53,31497.0,31469.0,3.8965]
[1609791786851,0.2797,31498.0,31466.0,0.1771]
[1609791787053,4.2434,31491.0,31460.0,0.10664]
[1609791787252,4.35884,31491.0,31460.0,0.10664]
[1609791788154,4.35884,31491.0,31457.0,3.7326]
[1609791788353,0.13632608,31458.0,31457.0,3.7326]
[1609791788556,4.35884,31491.0,31457.0,3.7326]
[1609791788557,0.15424,31468.0,31457.0,3.7326]
[1609791789355,0.15424,31468.0,31452.0,0.1771]
[1609791790059,4.97969,31475.0,31452.0,0.1771]
[1609791790355,4.97969,31475.0,31463.0,0.13632608]
[1609791792458,4.97969,31475.0,31452.0,0.1771]
[1609791792958,4.97969,31475.0,31465.0,0.13632608]
[1609791793560,0.15679,31475.0,31452.0,0.1771]
[1609791793762,0.15679,31475.0,31436.0,0.1771]
[1609791793763,5.0156,31457.0,31436.0,0.1771]
[1609791795062,0.13632608,31444.0,31440.0,0.13632608]
[1609791795463,5.3021,31442.0,31440.0,0.13632608]
[1609791795963,5.3021,31442.0,31436.0,0.1771]
[1609791796966,0.12034,31452.0,31441.0,0.13632608]
[1609791797567,0.6524,31451.0,31441.0,0.13632608]
[1609791798972,0.13632608,31442.0,31441.0,0.13632608]
[1609791801581,3.71962608,31442.0,31441.0,0.13632608]
[1609791803680,0.13632608,31442.0,31441.0,0.13632608]
[1609791804981,4.55502608,31442.0,31441.0,0.13632608]
[1609791806582,0.13632608,31442.0,31441.0,0.13632608]
[1609791807484,0.12034,31452.0,31432.0,0.10478]
[1609791807683,3.8803,31456.0,31428.0,5.1402]
[1609791808985,3.8803,31456.0,31442.0,0.13632608]
[1609791809185,3.8803,31456.0,31443.0,0.0956]
[1609791810386,3.8803,31456.0,31442.0,0.13632608]
[1609791810985,0.13632608,31443.0,31442.0,0.13632608]
[1609791811285,0.15548,31447.0,31442.0,0.13632608]
[1609791811886,0.15548,31447.0,31442.0,0.23042608]
[1609791812087,0.05958,31447.0,31442.0,0.23010983]
[1609791812387,0.29602343,31484.0,31446.0,5.0631]
[1609791813089,0.29602343,31484.0,31472.0,0.13632608]
[1609791813490,0.01872343,31484.0,31472.0,0.13632608]
[1609791814493,0.01872343,31484.0,31466.0,4.1335]
[1609791814893,0.13465343,31484.0,31466.0,4.1335]
[1609791815093,0.13465343,31484.0,31471.0,0.13632608]
[1609791816496,0.13465343,31484.0,31466.0,4.1335]
[1609791817299,0.13632608,31467.0,31466.0,4.1335]
[1609791817498,0.13632608,31467.0,31464.0,0.13632608]
[1609791817700,0.24917608,31467.0,31457.0,0.1771]
[1609791817901,0.24917608,31467.0,31452.0,5.1973]
[1609791818302,0.24917608,31467.0,31443.0,0.1771]
[1609791818700,0.24917608,31467.0,31433.0,3.9554]
[1609791819300,0.11285,31467.0,31449.0,0.13632608]
[1609791819500,0.11285,31467.0,31433.0,3.9554]
[1609791820101,0.11285,31467.0,31434.0,0.0961]
[1609791820306,0.11285,31467.0,31443.0,4.9185]
[1609791820502,0.11285,31467.0,31444.0,0.1771]
[1609791821403,0.11285,31467.0,31465.0,0.13632608]
[1609791822405,0.11285,31467.0,31444.0,4.4723]
[1609791822605,4.4395,31469.0,31444.0,4.4723]
[1609791822805,0.10609,31467.0,31444.0,4.4723]
[1609791823410,0.10609,31467.0,31455.0,0.13632608]
[1609791823807,0.10609,31467.0,31444.0,4.4723]
[1609791825410,0.10609,31467.0,31451.0,0.13632608]
[1609791825810,0.10609,31467.0,31444.0,0.1771]
[1609791826011,5.0979,31460.0,31434.0,0.10958]
[1609791826209,5.20993,31460.0,31429.0,3.8752]
[1609791827410,5.20993,31460.0,31451.0,0.13632608]
[1609791827611,0.11203,31460.0,31451.0,0.13632608]
[1609791827810,0.11203,31460.0,31429.0,0.1771]
[1609791827811,0.11203,31460.0,31441.0,5.1702]
[1609791829412,0.11203,31460.0,31449.0,0.13632608]
[1609791831118,0.10609,31467.0,31449.0,0.13632608]
[1609791831315,0.01912691,31469.0,31449.0,0.13632608]
[1609791831516,0.13632608,31450.0,31449.0,0.13632608]
[1609791832818,0.13632608,31450.0,31434.0,5.17962]
[1609791833421,0.13632608,31450.0,31449.0,0.13632608]
[1609791834420,0.09882608,31450.0,31449.0,0.13632608]
[1609791834819,0.05052608,31450.0,31449.0,0.13632608]
[1609791835222,0.05052608,31450.0,31442.0,0.0947]
[1609791835421,3.86432608,31450.0,31429.0,0.1771]
[1609791835619,0.10204,31456.0,31429.0,0.1771]
[1609791835820,4.7823,31438.0,31428.0,2.21979387]
[1609791836219,0.67702608,31429.0,31428.0,2.21979387]
[1609791837020,0.67702608,31429.0,31428.0,2.10753387]
[1609791837220,0.13632608,31429.0,31428.0,2.10753387]
[1609791837421,0.13187,31433.0,31428.0,1.54893387]
[1609791838423,0.13187,31433.0,31412.0,0.4853107]
[1609791838424,0.71339667,31433.0,31410.0,0.10625]
[1609791838623,5.25749667,31433.0,31410.0,0.10625]
[1609791838823,0.37163629,31410.0,31388.0,2.30201378]
[1609791839125,0.37163629,31410.0,31397.0,0.2894]
[1609791840024,0.10377,31411.0,31397.0,0.2894]
[1609791840225,0.13632608,31409.0,31386.0,0.1771]
[1609791841028,0.13632608,31409.0,31389.0,3.8222]
[1609791841226,0.13632608,31409.0,31389.0,3.96175]
[1609791841427,0.13632608,31409.0,31389.0,0.13955]
[1609791842229,3.7375,31402.0,31400.0,0.13632608]
[1609791842530,0.34173431,31399.0,31389.0,0.13955]
[1609791842730,0.34173431,31399.0,31386.0,0.1771]
[1609791843332,0.11244,31402.0,31386.0,0.1771]
[1609791843547,3.6379,31390.0,31381.0,1.84702831]
[1609791844134,3.77422608,31390.0,31381.0,1.84702831]
[1609791845232,0.13632608,31390.0,31381.0,1.84702831]
[1609791845433,3.8903,31382.0,31381.0,1.84702831]
[1609791846736,3.8903,31382.0,31381.0,1.36858792]
[1609791846935,0.09887,31395.0,31380.0,0.11654]
[1609791847836,4.831,31381.0,31380.0,0.11654]
[1609791848236,4.831,31381.0,31369.0,0.1771]
[1609791848237,4.96732608,31381.0,31371.0,0.13632608]
[1609791848436,0.13632608,31381.0,31369.0,0.1771]
[1609791848637,4.041,31374.0,31369.0,0.1771]
[1609791848837,4.041,31374.0,31348.0,0.1771]
[1609791850144,4.041,31374.0,31371.0,0.13632608]
[1609791850344,0.15557,31388.0,31348.0,0.2738]
[1609791850544,3.8588,31379.0,31366.0,0.1244]
[1609791852045,0.12165,31381.0,31366.0,0.1244]
[1609791852245,0.12165,31381.0,31380.0,0.13632608]
[1609791852646,0.08545,31381.0,31375.0,4.85057661]
[1609791852847,5e-05,31381.0,31375.0,4.85057661]
[1609791853047,0.09887,31395.0,31375.0,4.85057661]
[1609791853248,0.57266816,31397.0,31375.0,4.85057661]
[1609791853750,0.51808399,31397.0,31375.0,0.0969]
[1609791853949,0.34788399,31397.0,31386.0,5.151]
[1609791854150,0.64957816,31401.0,31386.0,5.28667]
[1609791854352,0.45587816,31401.0,31400.0,0.13632608]
[1609791854550,0.45587816,31401.0,31400.0,0.23132608]
[1609791854751,4.2638,31414.0,31386.0,0.13567]
[1609791855150,4.3664,31414.0,31386.0,0.13567]
[1609791856255,4.3664,31414.0,31397.0,0.13632608]
[1609791856755,4.3664,31414.0,31398.0,0.0944]
[1609791856955,0.1026,31414.0,31398.0,0.0944]
[1609791857154,0.1026,31414.0,31397.0,0.13632608]
[1609791857954,0.1026,31414.0,31389.0,5.2644]
[1609791858355,0.1026,31414.0,31386.0,0.13567]
[1609791859357,0.1026,31414.0,31382.0,0.1771]
[1609791859759,4.6349,31400.0,31382.0,0.1771]
[1609791860158,4.79518,31400.0,31382.0,0.1771]
[1609791860658,4.79518,31400.0,31383.0,0.13632608]
[1609791861163,0.16028,31400.0,31383.0,0.13632608]
[1609791861560,0.16028,31400.0,31382.0,0.1771]
[1609791862861,4.5493,31411.0,31382.0,0.1771]
[1609791863261,4.5493,31411.0,31407.0,0.13632608]
[1609791863463,0.1026,31414.0,31407.0,0.13632608]
[1609791863662,0.2882,31431.0,31407.0,0.13632608]
[1609791863663,5.1178,31430.0,31407.0,0.13632608]
[1609791863863,4.9747,31414.0,31382.0,0.1771]
[1609791864062,0.10804,31417.0,31382.0,0.1771]
[1609791864263,0.47825532,31386.0,31382.0,0.1771]
[1609791865263,0.13632608,31399.0,31385.0,0.13632608]
[1609791866165,0.13632608,31399.0,31382.0,0.1771]
[1609791866365,0.25058608,31399.0,31382.0,0.1771]
[1609791866969,0.607,31398.0,31382.0,0.1771]
[1609791867371,0.13632608,31383.0,31382.0,0.31342608]
[1609791867568,0.13632608,31383.0,31382.0,0.1771]
[1609791868171,0.13632608,31383.0,31363.0,0.1771]
[1609791869273,0.13632608,31383.0,31382.0,0.13632608]
[1609791869875,0.14898,31392.0,31382.0,0.13632608]
[1609791870273,0.20287282,31372.0,31363.0,0.1771]
[1609791870474,0.20287282,31372.0,31363.0,0.2716]
[1609791870874,0.14898,31392.0,31363.0,0.2716]
[1609791871074,0.14898,31392.0,31363.0,0.41445]
[1609791871274,0.14898,31392.0,31382.0,0.13632608]
[1609791872378,0.11426,31399.0,31382.0,0.13632608]
[1609791872577,0.2791,31413.0,31382.0,0.13632608]
[1609791873479,0.2791,31413.0,31381.0,0.1771]
[1609791873979,0.2791,31413.0,31398.0,0.13632608]
[1609791874579,5.1237,31439.0,31398.0,0.13632608]
[1609791874881,0.2747,31429.0,31398.0,0.0964]
[1609791875079,0.43383,31429.0,31394.0,5.2667]
[1609791875280,0.43383,31429.0,31394.0,4.78849042]
[1609791875679,0.15913,31429.0,31394.0,4.78849042]
[1609791875879,0.15913,31429.0,31389.0,0.0963]
[1609791876080,0.15913,31429.0,31403.0,3.5937]
[1609791876280,0.15913,31429.0,31425.0,0.13632608]
[1609791876480,0.80367227,31440.0,31425.0,0.13632608]
[1609791877784,0.2897,31441.0,31425.0,0.13632608]
[1609791878184,0.2897,31441.0,31403.0,3.5937]
[1609791878384,0.42856,31441.0,31423.0,0.13632608]
[1609791878986,5.21926,31441.0,31423.0,0.13632608]
[1609791879487,5.21926,31441.0,31403.0,4.1665]
[1609791880387,5.21926,31441.0,31416.0,0.13632608]
[1609791882290,0.13632608,31417.0,31416.0,0.13632608]
[1609791882694,0.13632608,31417.0,31403.0,4.1665]
[1609791883294,0.15182,31431.0,31406.0,5.1365]
[1609791883497,0.15182,31431.0,31401.0,0.096]
[1609791883695,0.15182,31431.0,31415.0,4.1568]
[1609791883896,0.13886,31441.0,31415.0,4.1568]
[1609791884096,0.66716289,31442.0,31415.0,4.1568]
[1609791884397,0.66716289,31442.0,31424.0,0.13632608]
[1609791884596,0.81538014,31444.0,31425.0,0.7615]
[1609791884597,0.5628445,31437.0,31425.0,0.7615]
[1609791885798,0.56399441,31443.0,31425.0,0.7615]
[1609791887001,0.56399441,31443.0,31426.0,0.13632608]
[1609791887202,0.56399441,31443.0,31425.0,0.7615]
[1609791887405,0.56388367,31442.0,31425.0,0.7615]
[1609791887803,0.56388367,31442.0,31404.0,2.11271111]
[1609791888405,0.477619,31428.0,31404.0,2.11271111]
[1609791888907,0.477619,31428.0,31401.0,0.096]
[1609791889506,0.477619,31428.0,31400.0,2.20813843]
[1609791889707,0.577919,31428.0,31400.0,2.11293843]
[1609791889907,0.577919,31428.0,31401.0,2.11386288]
[1609791890306,0.1003,31428.0,31401.0,2.11386288]
[1609791890908,3.9213,31425.0,31401.0,2.11386288]
[1609791892710,3.9213,31425.0,31389.0,2.97824029]
[1609791892711,3.9213,31425.0,31382.0,2.20648005]
[1609791892910,0.47791752,31408.0,31382.0,2.20648005]
[1609791893113,0.47791752,31408.0,31407.0,0.13632608]
[1609791893911,0.13826,31412.0,31407.0,0.13632608]
[1609791894113,0.13826,31412.0,31392.0,5.3371]
[1609791895115,0.13826,31412.0,31410.0,0.13632608]
[1609791895618,0.13826,31412.0,31392.0,5.3371]
[1609791895818,0.13826,31412.0,31378.0,2.10968701]
[1609791896017,3.7457,31395.0,31378.0,2.10968701]
[1609791896218,0.11988,31398.0,31378.0,2.10968701]
[1609791896619,3.614,31383.0,31379.0,2.11022045]
[1609791897219,0.13632608,31382.0,31379.0,2.11022045]
[1609791897620,0.13632608,31382.0,31364.0,2.11208835]
[1609791897820,5.2472,31370.0,31364.0,2.11208835]
[1609791899121,0.13632608,31365.0,31364.0,2.11208835]
[1609791900323,0.13632608,31365.0,31363.0,0.27917608]
[1609791902325,0.13632608,31365.0,31363.0,0.14285]
[1609791902525,0.13632608,31365.0,31361.0,0.1771]
[1609791902927,0.13632608,31365.0,31347.0,2.11070391]
[1609791903127,0.13632608,31348.0,31347.0,2.11070391]
[1609791903327,0.13632608,31348.0,31346.0,2.30234197]
[1609791905731,0.13332,31367.0,31346.0,2.30234197]
[1609791905932,0.10155,31376.0,31346.0,0.14832]
[1609791906132,0.55231301,31382.0,31346.0,0.14832]
[1609791907133,0.55231301,31382.0,31363.0,0.13632608]
[1609791907533,0.6627388,31383.0,31363.0,0.13632608]
[1609791907733,5.13833,31384.0,31360.0,0.14748]
[1609791908133,0.47863684,31361.0,31360.0,0.14748]
[1609791908635,4.96983684,31361.0,31360.0,0.14748]
[1609791908833,4.96983684,31361.0,31349.0,0.356]
[1609791909234,4.4912,31361.0,31349.0,0.356]
[1609791909635,4.4912,31361.0,31346.0,0.14832]
[1609791909836,0.13632608,31347.0,31346.0,0.28464608]
[1609791910838,0.13632608,31347.0,31343.0,0.01004608]
[1609791911037,0.13632608,31347.0,31333.0,2.10285368]
[1609791911440,4.9686,31340.0,31333.0,2.10285368]
[1609791911838,0.13632608,31334.0,31333.0,2.10285368]
[1609791912138,0.10167,31356.0,31331.0,0.1771]